fUSD/lending_fUSD_20241123
["ID","MTS","AMOUNT","RATE_DAILY","PERIOD"]
[343144319,1732379462274,-1279.29,0.00055989,120]
[343144320,1732379462284,-1026.01,0.00055989,30]
[343144321,1732379462293,-501.99,0.00055989,120]
[343144322,1732379462306,-1279.29,0.00055989,120]
[343144323,1732379462315,-1026.01,0.00055989,30]
[343144324,1732379462325,-501.99,0.00055989,120]
[343144325,1732379462334,-1279.29,0.00055989,120]
[343144326,1732379462343,-1026.01,0.00055989,30]
[343144327,1732379462353,-1279.29,0.00055989,120]
[343144328,1732379462363,-1026.01,0.00055989,30]
[343144329,1732379462372,-501.99,0.00055989,120]
[343144330,1732379462383,-1279.29,0.00055989,120]
[343144331,1732379462392,-1026.01,0.00055989,30]
[343144332,1732379462403,-501.99,0.00055989,120]
[343144333,1732379462412,-1279.29,0.00055989,120]
[343144334,1732379462422,-1026.01,0.00055989,30]
[343144335,1732379462432,-501.99,0.00055989,120]
[343144336,1732379462443,-1279.29,0.00055989,120]
[343144337,1732379462454,-1026.01,0.00055989,30]
[343144338,1732379462464,-1279.29,0.00055989,120]
[343144339,1732379462474,-501.99,0.00055989,120]
[343144340,1732379462483,-1026.01,0.00055989,30]
[343144341,1732379462492,-1279.29,0.00055989,120]
[343144342,1732379462502,-1026.01,0.00055989,30]
[343144343,1732379462512,-501.99,0.00055989,120]
[343144344,1732379462522,-1279.29,0.00055989,120]
[343144345,1732379462531,-1026.01,0.00055989,30]
[343144346,1732379462539,-501.99,0.00055989,120]
[343144347,1732379462548,-1279.29,0.00055989,120]
[343144348,1732379462560,-1026.01,0.00055989,30]
[343144349,1732379462569,-501.99,0.00055989,120]
[343144350,1732379462578,-1279.43747707,0.00055989,120]
[343144351,1732379462587,-1026.01,0.00055989,30]
[343144352,1732379462597,-501.99134889,0.00055989,120]
[343144353,1732379462606,-1026.01,0.00055989,30]
[343144354,1732379462616,-1026.01,0.00055989,30]
[343144355,1732379462626,-1026.16657734,0.00055989,30]
[343144356,1732379462636,-535.22,0.00055989,120]
[343144357,1732379462645,-535.22,0.00055989,120]
[343144358,1732379462654,-535.22,0.00055989,120]
[343144359,1732379462663,-535.22,0.00055989,120]
[343144360,1732379462672,-535.22,0.00055989,120]
[343144361,1732379462681,-535.22,0.00055989,120]
[343144362,1732379462690,-535.22,0.00055989,120]
[343144363,1732379462700,-535.22,0.00055989,120]
[343144364,1732379462709,-535.22,0.00055989,120]
[343144365,1732379462719,-535.22,0.00055989,120]
[343144366,1732379462728,-535.22,0.00055989,120]
[343144367,1732379462738,-535.22,0.00055989,120]
[343144368,1732379462747,-535.22,0.00055989,120]
[343144369,1732379462757,-535.22,0.00055989,120]
[343144370,1732379462767,-535.22,0.00055989,120]
[343144371,1732379462777,-535.29961766,0.00055989,120]
[343144372,1732379462787,-768.5,0.00055989,120]
[343144373,1732379462797,-768.5,0.00055989,120]
[343144374,1732379462810,-768.5,0.00055989,120]
[343144375,1732379462820,-768.5,0.00055989,120]
[343144376,1732379462830,-768.5,0.00055989,120]
[343144377,1732379462840,-768.5,0.00055989,120]
[343144378,1732379462851,-768.5,0.00055989,120]
[343144379,1732379462862,-768.5,0.00055989,120]
[343144380,1732379462873,-768.5,0.00055989,120]
[343144381,1732379462883,-768.5,0.00055989,120]
[343144382,1732379462893,-768.5,0.00055989,120]
[343144383,1732379462904,-768.5,0.00055989,120]
[343144384,1732379462914,-768.5,0.00055989,120]
[343144385,1732379462924,-500.0,0.00055989,120]
[343144386,1732379462935,-768.5,0.00055989,120]
[343144387,1732379462946,-500.0,0.00055989,120]
[343144388,1732379462955,-768.5,0.00055989,120]
[343144389,1732379462965,-768.71614203,0.00055989,120]
[343144390,1732379462976,-500.0,0.00055989,120]
[343144391,1732379462986,-227.0331336,0.00055989,120]
[343144392,1732379462996,-907.09,0.00055989,120]
[343144393,1732379463006,-907.09,0.00055989,120]
[343144394,1732379463017,-907.09,0.00055989,120]
[343144395,1732379463027,-907.09,0.00055989,120]
[343144396,1732379463038,-907.09,0.00055989,120]
[343144397,1732379463049,-907.09,0.00055989,120]
[343144398,1732379463064,-907.09,0.00055989,120]
[343144399,1732379463075,-536.51,0.00055989,120]
[343144400,1732379463086,-536.51,0.00055989,120]
[343144401,1732379463097,-907.09,0.00055989,120]
[343144402,1732379463107,-536.51,0.00055989,120]
[343144403,1732379463119,-907.09,0.00055989,120]
[343144404,1732379463131,-907.09,0.00055989,120]
[343144405,1732379463141,-536.51,0.00055989,120]
[343144406,1732379463152,-536.51,0.00055989,120]
[343144407,1732379463163,-907.09,0.00055989,120]
[343144408,1732379463173,-536.51,0.00055989,120]
[343144409,1732379463185,-907.09,0.00055989,120]
[343144410,1732379463197,-907.09,0.00055989,120]
[343144411,1732379463208,-536.51,0.00055989,120]
[343144412,1732379463220,-536.51,0.00055989,120]
[343144413,1732379463232,-907.09,0.00055989,120]
[343144414,1732379463243,-536.51,0.00055989,120]
[343144415,1732379463253,-907.09,0.00055989,120]
[343144416,1732379463264,-907.09,0.00055989,120]
[343144417,1732379463273,-536.51,0.00055989,120]
[343144418,1732379463284,-536.62,0.00055989,120]
[343144419,1732379463294,-907.19273255,0.00055989,120]
[343144420,1732379463309,-516.07368217,0.00055989,120]
[343144421,1732379463321,-601.39,0.00055989,120]
[343144422,1732379463332,-601.39,0.00055989,120]
[343144423,1732379463342,-601.39,0.00055989,120]
[343144424,1732379463353,-601.39,0.00055989,120]
[343144425,1732379463364,-601.39,0.00055989,120]
[343144426,1732379463374,-601.39,0.00055989,120]
[343144427,1732379463385,-601.39,0.00055989,120]
[343144428,1732379463395,-601.39,0.00055989,120]
[343144429,1732379463405,-601.39,0.00055989,120]
[343144430,1732379463415,-500.0,0.00055989,120]
[343144431,1732379463425,-601.39,0.00055989,120]
[343144432,1732379463435,-500.0,0.00055989,120]
[343144433,1732379463446,-601.39,0.00055989,120]
[343144434,1732379463457,-500.0,0.00055989,120]
[343144435,1732379463467,-601.39,0.00055989,120]
[343144436,1732379463477,-500.0,0.00055989,120]
[343144437,1732379463487,-500.0,0.00055989,120]
[343144438,1732379463497,-601.39,0.00055989,120]
[343144439,1732379463508,-500.0,0.00055989,120]
[343144440,1732379463518,-500.0,0.00055989,120]
[343144441,1732379463529,-500.0,0.00055989,120]
[343144442,1732379463539,-601.39,0.00055989,120]
[343144443,1732379463555,-500.0,0.00055989,120]
[343144444,1732379463566,-500.0,0.00055989,120]
[343144445,1732379463578,-601.39,0.00055989,120]
[343144446,1732379463589,-500.0,0.00055989,120]
[343144447,1732379463599,-601.55828945,0.00055989,120]
[343144448,1732379463609,-500.0,0.00055989,120]
[343144449,1732379463620,-500.0,0.00055989,120]
[343144450,1732379463631,-634.96,0.00055989,120]
[343144451,1732379463642,-500.0,0.00055989,120]
[343144452,1732379463654,-500.0,0.00055989,120]
[343144453,1732379463665,-500.0,0.00055989,120]
[343144454,1732379463676,-527.29927937,0.00055989,120]
[343144455,1732379463687,-811.91,0.00055989,120]
[343144456,1732379463698,-811.91,0.00055989,120]
[343144457,1732379463708,-811.91,0.00055989,120]
[343144458,1732379463719,-811.91,0.00055989,120]
[343144459,1732379463730,-811.91,0.00055989,120]
[343144460,1732379463740,-811.91,0.00055989,120]
[343144461,1732379463752,-811.91,0.00055989,120]
[343144462,1732379463763,-811.91,0.00055989,120]
[343144463,1732379463776,-811.91,0.00055989,120]
[343144464,1732379463787,-811.91,0.00055989,120]
[343144465,1732379463798,-811.91,0.00055989,120]
[343144466,1732379463816,-811.91,0.00055989,120]
[343144467,1732379463827,-811.91,0.00055989,120]
[343144468,1732379463843,-804.88,0.00055989,120]
[343144469,1732379463854,-811.91,0.00055989,120]
[343144470,1732379463865,-804.88,0.00055989,120]
[343144471,1732379463878,-811.91,0.00055989,120]
[343144472,1732379463889,-804.88,0.00055989,120]
[343144473,1732379463900,-811.95,0.00055989,120]
[343144474,1732379463911,-804.88,0.00055989,120]
[343144475,1732379463923,-804.88,0.00055989,120]
[343144476,1732379463934,-804.88,0.00055989,120]
[343144477,1732379463946,-804.88,0.00055989,120]
[343144478,1732379463957,-804.88,0.00055989,120]
[343144479,1732379463967,-804.88,0.00055989,120]
[343144480,1732379463977,-804.88,0.00055989,120]
[343144481,1732379463987,-804.88,0.00055989,120]
[343144482,1732379463997,-804.88,0.00055989,120]
[343144483,1732379464008,-804.88,0.00055989,120]
[343144484,1732379464019,-804.88,0.00055989,120]
[343144485,1732379464031,-804.88,0.00055989,120]
[343144486,1732379464042,-804.88,0.00055989,120]
[343144487,1732379464056,-805.00868371,0.00055989,120]
[343144488,1732379464066,-500.0,0.00055989,120]
[343144489,1732379464077,-569.94833788,0.00055989,120]
[343144490,1732379464088,-663.87,0.00055989,120]
[343144491,1732379464098,-663.87,0.00055989,120]
[343144492,1732379464109,-663.87,0.00055989,120]
[343144493,1732379464121,-663.87,0.00055989,120]
[343144494,1732379464134,-663.87,0.00055989,120]
[343144495,1732379464146,-663.87,0.00055989,120]
[343144496,1732379464157,-663.87,0.00055989,120]
[343144497,1732379464169,-663.87,0.00055989,120]
[343144498,1732379464180,-663.87,0.00055989,120]
[343144499,1732379464191,-663.87,0.00055989,120]
[343144500,1732379464201,-663.97287796,0.00055989,120]
[343144501,1732379464212,-500.0,0.00055989,120]
[343144502,1732379464223,-813.28,0.00055989,120]
[343144503,1732379464234,-500.0,0.00055989,120]
[343144504,1732379464245,-813.28,0.00055989,120]
[343144505,1732379464255,-500.0,0.00055989,120]
[343144506,1732379464266,-813.28,0.00055989,120]
[343144507,1732379464276,-500.0,0.00055989,120]
[343144508,1732379464285,-813.28,0.00055989,120]
[343144509,1732379464297,-500.0,0.00055989,120]
[343144510,1732379464311,-813.28,0.00055989,120]
[343144511,1732379464321,-500.0,0.00055989,120]
[343144512,1732379464331,-813.28,0.00055989,120]
[343144513,1732379464342,-500.0,0.00055989,120]
[343144514,1732379464354,-690.15,0.00055989,120]
[343144515,1732379464365,-500.0,0.00055989,120]
[343144516,1732379464375,-813.28,0.00055989,120]
[343144517,1732379464386,-690.15,0.00055989,120]
[343144518,1732379464396,-500.0,0.00055989,120]
[343144519,1732379464407,-690.15,0.00055989,120]
[343144520,1732379464418,-500.0,0.00055989,120]
[343144521,1732379464428,-690.15,0.00055989,120]
[343144522,1732379464439,-500.0,0.00055989,120]
[343144523,1732379464449,-690.15,0.00055989,120]
[343144524,1732379464459,-500.0,0.00055989,120]
[343144525,1732379464469,-690.15,0.00055989,120]
[343144526,1732379464479,-475.32332081,0.00055989,120]
[343144527,1732379464488,-690.15,0.00055989,120]
[343144528,1732379464498,-813.28,0.00055989,120]
[343144529,1732379464508,-690.15,0.00055989,120]
[343144530,1732379464519,-813.28,0.00055989,120]
[343144531,1732379464529,-690.15,0.00055989,120]
[343144532,1732379464540,-690.15,0.00055989,120]
[343144533,1732379464555,-690.31916476,0.00055989,120]
[343144534,1732379464566,-813.28,0.00055989,120]
[343144535,1732379464580,-813.28,0.00055989,120]
[343144536,1732379464590,-813.28,0.00055989,120]
[343144537,1732379464601,-813.28,0.00055989,120]
[343144538,1732379464611,-813.28,0.00055989,120]
[343144539,1732379464622,-813.28,0.00055989,120]
[343144540,1732379464632,-813.28,0.00055989,120]
[343144541,1732379464643,-813.30288879,0.00055989,120]
[343144542,1732379464654,-500.0,0.00055989,120]
[343144543,1732379464665,-500.0,0.00055989,120]
[343144544,1732379464676,-500.0,0.00055989,120]
[343144545,1732379464687,-500.0,0.00055989,120]
[343144546,1732379464697,-500.0,0.00055989,120]
[343144547,1732379464707,-500.0,0.00055989,120]
[343144548,1732379464718,-500.0,0.00055989,120]
[343144549,1732379464729,-500.0,0.00055989,120]
[343144550,1732379464740,-180.08,0.00055989,120]
[343144551,1732379464751,-179.79,0.00055989,120]
[343144552,1732379464761,-376.9543214,0.00055989,120]
[343144553,1732379464771,-375.66091104,0.00055989,21]
[343144554,1732379464782,-500.0,0.00055989,120]
[343144555,1732379464793,-223.04384531,0.00055989,120]
[343144556,1732379464811,-2980.58775526,0.00055989,60]
[343144557,1732379464822,-400.44156331,0.0005599,2]
[343144558,1732379464833,-240.26493799,0.0005599,2]
[343144559,1732379464847,-160.17662532,0.0005599,2]
[343144560,1732379464857,-6202.3963081,0.0005599,120]
[343144561,1732379464868,-1000.0,0.0005599,120]
[343144562,1732379464880,-75595692.88182327,0.0005599,60]
[343144563,1732379465073,-7357.13514268,0.0005599,60]
[343144564,1732379465085,-9761.36139037,0.0005599,60]
[343144565,1732379465098,-6958.88358363,0.0005599,60]
[343144566,1732379465276,-9325.59242851,0.0005599,60]
[343144567,1732379465287,-2115.13689563,0.0005599,60]
[343144568,1732379465304,-2549.93803606,0.0005599,60]
[343144569,1732379465321,-457.87773691,0.00054794,120]
[343144570,1732379465334,-42.12226309,0.00054794,120]
[343144571,1732379465344,-4338.28085638,0.0005599,60]
[343144572,1732379465356,-73378.49025391,0.0005599,60]
[343144573,1732379465664,-519.89648681,0.0005599,60]
[343144574,1732379465721,-855.2,0.00054794,120]
[343144575,1732379465730,-500.0,0.00054794,120]
[343144576,1732379465740,-855.2,0.00054794,120]
[343144577,1732379465750,-500.0,0.00054794,120]
[343144578,1732379465760,-855.2,0.00054794,120]
[343144579,1732379465769,-855.2,0.00054794,120]
[343144580,1732379465780,-855.2,0.00054999,120]
[343144581,1732379465790,-500.0,0.00055709,120]
[343144582,1732379465804,-500.0,0.00055985,120]
[343144583,1732379465814,-500.0,0.00055988,120]
[343144584,1732379465824,-442134.30203329,0.0005599,60]
[343144585,1732379465838,-595912.148,0.0005599,60]
[343144586,1732379465855,-855.2,0.00055192,120]
[343144587,1732379465865,-3114.29999977,0.0005599,60]
[343144588,1732379465876,-1170.615752,0.0005599,60]
[343144589,1732379465890,-338.85852,0.0005599,60]
[343144590,1732379465901,-827.4492477,0.0005599,60]
[343144591,1732379465915,-900.54002,0.0005599,60]
[343144592,1732379465926,-656.00202615,0.0005599,60]
[343144593,1732379465938,-430.99,0.0005599,60]
[343144594,1732379466137,-500.0,0.00055988,120]
[343144595,1732379466149,-62.63573924,0.0005599,60]
[343144596,1732379466171,-500.0,0.00054794,120]
[343144597,1732379466181,-1162.0,0.00055193,120]
[343144598,1732379466191,-430.90360381,0.0005599,60]
[343144599,1732379466203,-734.475,0.0005599,60]
[343144600,1732379466214,-484.9971497,0.0005599,60]
[343144601,1732379466227,-352.43827759,0.0005599,60]
[343144602,1732379466377,-159.1466688,0.00047186,10]
[343144603,1732379466387,-159.1498624,0.00047186,2]
[343144604,1732379466396,-759.92586969,0.000513,120]
[343144605,1732379466407,-344.9394236,0.000513,120]
[343144606,1732379466419,-261.355998,0.000513,120]
[343144607,1732379466430,-295.96503048,0.000513,120]
[343144608,1732379466442,-419.9999996,0.000513,120]
[343144609,1732379466453,-3840.37339911,0.000513,120]
[343144610,1732379466465,-1060.44027952,0.000513,120]
[343144611,1732379466475,-855.2,0.00055879,120]
[343144612,1732379466485,-855.2,0.00055987,120]
[343144613,1732379466495,-500.0,0.00055988,120]
[343144614,1732379466504,-855.2,0.00055988,120]
[343144615,1732379466514,-855.2,0.00055988,120]
[343144616,1732379466524,-855.2,0.00055988,120]
[343144617,1732379466534,-855.2,0.00055988,120]
[343144618,1732379466544,-500.0,0.00055989,120]
[343144619,1732379466562,-500.0,0.00055989,120]
[343144620,1732379466572,-647.17054816,0.00055989,120]
[343144621,1732379466582,-855.2,0.00055989,120]
[343144622,1732379466591,-578.54917771,0.00055989,120]
[343144623,1732379466604,-276.65082229,0.00055989,120]
[343144624,1732379466613,-855.2,0.00055989,120]
[343144625,1732379466623,-17491.46245485,0.0005599,60]
[343144626,1732379466635,-6684.66617947,0.0005599,60]
[343144627,1732379466647,-5511.55842772,0.0005599,60]
[343144628,1732379466659,-15963.18072873,0.0005599,60]
[343144629,1732379466671,-117874.34069682,0.0005599,60]
[343144630,1732379466684,-2370.92817933,0.0005599,60]
[343144631,1732379466695,-1956.0,0.0005599,60]
[343144632,1732379466711,-159.169024,0.00047186,2]
[343144633,1732379466721,-23747.41853636,0.0005599,60]
[343144634,1732379466732,-1743.17435468,0.0005599,60]
[343144635,1732379466743,-2450.05419613,0.0005599,60]
[343144636,1732379466755,-645.66836406,0.0005599,60]
[343144637,1732379466768,-1258.5460599,0.0005599,60]
[343144638,1732379466785,-755.7191871,0.00055989,120]
[343144639,1732379466807,-99.4808129,0.00055989,120]
[343144640,1732379466816,-512.19141982,0.0005599,60]
[343144641,1732379467042,-500.0,0.00054794,120]
[343144642,1732379467057,-500.0,0.00054794,120]
[343144643,1732379467068,-500.0,0.00054794,120]
[343144644,1732379467078,-500.0,0.00054794,120]
[343144645,1732379467088,-500.0,0.00054794,120]
[343144646,1732379467098,-500.0,0.00054794,120]
[343144647,1732379467108,-428.75,0.00054794,120]
[343144648,1732379467118,-433.75,0.00055453,60]
[343144649,1732379467128,-855.2,0.00055989,120]
[343144650,1732379467138,-855.2,0.00055989,120]
[343144651,1732379467148,-855.2,0.00055989,120]
[343144652,1732379467159,-855.2,0.00055989,120]
[343144653,1732379467169,-7.00104262,0.00055989,120]
[343144654,1732379467182,-730.90695609,0.00055989,120]
[343144655,1732379467195,-117.29200129,0.00055989,120]
[343144656,1732379467205,-785.27157885,0.00055989,120]
[343144657,1732379467217,-70.1147396,0.00055989,120]
[343144658,1732379467227,-1634.30174908,0.0005599,60]
[343144659,1732379467238,-2933.2902972,0.0005599,60]
[343144660,1732379467250,-741.29777952,0.0005599,60]
[343144661,1732379467266,-525.65,0.0005452,5]
[343144662,1732379467278,-410.050523,0.0005452,5]
[343144663,1732379467287,-40.588642,0.0005599,60]
[343144664,1732379467299,-16050.0,0.0005599,60]
[343144665,1732379467318,-381.9667867,0.0005599,60]
[343144666,1732379467330,-646.63440525,0.0005599,60]
[343144667,1732379467346,-500.0,0.00054794,120]
[343144668,1732379467355,-129.36634097,0.0005599,60]
[343144669,1732379467367,-601.81251272,0.0005599,60]
[343144670,1732379467379,-16988.74810345,0.0005599,60]
[343144671,1732379467390,-31160.58598778,0.0005599,60]
[343144672,1732379467402,-964.43735695,0.0005599,60]
[343144673,1732379467413,-3774.4295486,0.0005599,60]
[343144674,1732379467424,-293867.8140674,0.0005599,60]
[343144675,1732379467435,-19579.05,0.0005599,60]
[343144676,1732379467447,-794.93738039,0.0005599,60]
[343144677,1732379467458,-243132.44355368,0.0005599,60]
[343144678,1732379467471,-5251.04995,0.0005599,60]
[343144679,1732379467487,-355.62655542,0.00054794,120]
[343144680,1732379467636,8500.0,0.00032223,6]
[343144681,1732379468139,8500.0,0.00032214,6]
[343144682,1732379469889,157.48,0.00041096,2]
[343144683,1732379486961,8500.0,0.00032206,6]
[343144686,1732379533661,151.0,0.0003,120]
[343144687,1732379534254,151.0,0.00036658,120]
[343144688,1732379552983,475.31087994,0.000425,2]
[343144689,1732379553252,500.0,0.000425,2]
[343144690,1732379944716,800.0,0.00026986,120]
[343144691,1732379948256,169.61825,0.0003486,2]
[343144692,1732379948477,169.61825,0.00041957,2]
[343144693,1732380003264,150.0,0.00041957,2]
[343144694,1732380003574,150.0,0.00041957,2]
[343144695,1732380003823,150.0,0.00041957,2]
[343144696,1732380004094,150.0,0.00041957,2]
[343144697,1732380004343,150.0,0.00041957,2]
[343144698,1732380004644,150.0,0.00041957,2]
[343144699,1732380004874,150.0,0.00041957,2]
[343144700,1732380005109,244.87551712,0.00041957,2]
[343144701,1732380106955,250.0,0.00031,2]
[343144702,1732380108069,300.0,0.00033,2]
[343144703,1732380109170,350.0,0.00035,2]
[343144704,1732380110281,400.0,0.00037,2]
[343144705,1732380111423,450.0,0.00039,2]
[343144706,1732380112543,500.0,0.00041,2]
[343144707,1732380163620,204.67,0.00041096,2]
[343144708,1732380163880,150.0,0.00040996,2]
[343144739,1732380586327,913.74072386,0.000425,2]
[343144762,1732380632155,-1260.46963222,0.000426,7]
[343144763,1732380632166,-1076.477183,0.000426,2]
[343144764,1732380632175,-166.7839895,0.000427,2]
[343144765,1732380632184,-408.0,0.000429,2]
[343144766,1732380632194,-550.0,0.00043,2]
[343144767,1732380632203,-151.0,0.00043315,120]
[343144768,1732380632213,-600.0,0.00045,2]
[343144769,1732380632224,-204.67,0.00046143,2]
[343144770,1732380632233,-451.99458225,0.00046869,2]
[343144771,1732380635762,-5823.35541775,0.00046869,2]
[343144772,1732380635772,-650.0,0.00047,2]
[343144773,1732380635782,-334.41,0.00047,30]
[343144774,1732380635792,-150.0,0.00047043,2]
[343144775,1732380635801,-200.0,0.00047157,2]
[343144776,1732380635811,-831.51,0.00047322,2]
[343144777,1732380635820,-166.7839895,0.00047527,2]
[343144778,1732380635829,-1674.46,0.00047578,2]
[343144779,1732380635838,-5604.22,0.00047613,2]
[343144780,1732380635847,-1000.0,0.00047627,2]
[343144781,1732380635857,-250.0,0.00047667,120]
[343144782,1732380635866,-761.86,0.00047717,2]
[343144783,1732380635875,-300.0,0.0004781,2]
[343144784,1732380635884,-248.0,0.00047987,2]
[343144785,1732380635893,-370.6,0.00048023,2]
[343144786,1732380635903,-1000.0,0.00048027,2]
[343144787,1732380635912,-250.0,0.00048076,120]
[343144788,1732380635926,-564.97,0.00048171,120]
[343144789,1732380635935,-483.46392774,0.0004819,2]
[343144791,1732380635944,-1000.0,0.00048199,9]
[343144793,1732380635953,-742.1653,0.000482,2]
[343144795,1732380635962,-33792.44731516,0.000482,2]
[343144797,1732380635973,-10702.18398484,0.000482,2]
[343144799,1732380635983,-882.852,0.000482,82]
[343144801,1732380635992,-209.29661426,0.000482,15]
[343144803,1732380636001,-1698.65350498,0.000482,15]
[343144805,1732380636011,-164.38,0.00048253,120]
[343144807,1732380636020,-20742.0,0.00048287,30]
[343144809,1732380636029,-210.0,0.000483,2]
[343144811,1732380636039,-1000.0,0.000483,2]
[343144813,1732380636048,-500.0,0.000483,2]
[343144815,1732380636058,-73135.93881707,0.000483,2]
[343144818,1732380636069,-752.72875069,0.000483,2]
[343144820,1732380636080,-4820.68725187,0.000483,2]
[343144822,1732380636091,-285.2,0.000483,2]
[343144824,1732380636101,-400.0,0.000483,2]
[343144946,1732380638208,-20605.44518037,0.000483,2]
[343144947,1732380638218,-22945.032,0.000483,30]
[343144948,1732380638227,-1000.0,0.000484,2]
[343144949,1732380638238,-2500.0,0.000484,2]
[343144950,1732380638247,-26605.2529,0.000485,2]
[343144951,1732380638257,-391.12858089,0.000485,30]
[343144952,1732380638266,-2218.10215448,0.000485,30]
[343144953,1732380638276,-250.0,0.0004878,120]
[343144954,1732380638286,-500.0,0.00048887,2]
[343144955,1732380638296,-160.93,0.00048887,2]
[343144956,1732380638307,-5071.81,0.00048887,2]
[343144957,1732380638316,-23900.0,0.00048887,2]
[343144958,1732380638326,-160.93,0.000489,2]
[343144959,1732380638335,-22923.3221,0.000489,2]
[343144960,1732380638344,-4563.3757,0.000489,2]
[343144961,1732380638354,-160.93,0.00048913,2]
[343144962,1732380638363,-160.93,0.00048926,2]
[343144963,1732380638372,-160.93,0.00048939,2]
[343144964,1732380638382,-160.93,0.00048951,2]
[343144965,1732380638391,-160.93,0.00048964,2]
[343144966,1732380638402,-160.93,0.00048977,2]
[343144967,1732380638411,-160.93,0.0004899,2]
[343144968,1732380638422,-2500.0,0.00049,40]
[343144969,1732380638432,-700.0,0.00049,2]
[343144970,1732380638442,-160.93,0.00049003,2]
[343144971,1732380638451,-160.93,0.00049016,2]
[343144972,1732380638461,-160.93,0.00049029,2]
[343144973,1732380638471,-160.93,0.00049042,2]
[343144974,1732380638480,-169.61825,0.00049053,120]
[343144975,1732380638490,-209.29661421,0.00049054,15]
[343144976,1732380638500,-1698.6535049,0.00049054,15]
[343144977,1732380638509,-160.93,0.00049054,2]
[343144978,1732380638519,-160.93,0.00049067,2]
[343144979,1732380638528,-160.93,0.0004908,2]
[343144980,1732380638538,-160.93,0.00049093,2]
[343144981,1732380638548,-160.93,0.00049106,2]
[343144982,1732380638557,-160.93,0.00049119,2]
[343144983,1732380638567,-160.93,0.00049132,2]
[343144984,1732380638577,-159.1466688,0.0004918,2]
[343144985,1732380638588,-343.50403164,0.0004918,10]
[343144986,1732380638597,-150.1466688,0.0004918,2]
[343144987,1732380638606,-159.42138754,0.0004918,2]
[343144988,1732380638616,-500.0,0.0004927,2]
[343144989,1732380638626,-1000.0,0.00049389,2]
[343144990,1732380638635,-1172.94,0.00049468,2]
[343144991,1732380638644,-323.50710952,0.00049818,2]
[343144992,1732380638654,-209.29661421,0.00049909,15]
[343144993,1732380638663,-1698.6535049,0.00049909,15]
[343144995,1732380638676,-151.0,0.00049973,120]
[343144997,1732380638686,-761.86,0.00050103,2]
[343144998,1732380638695,-209.29661421,0.00050763,15]
[343145000,1732380638704,-1698.6535049,0.00050763,15]
[343145001,1732380638714,-287.44873895,0.000509,28]
[343145002,1732380638723,-13355.30212834,0.00050906,2]
[343145004,1732380638742,-1285.42867166,0.00050906,2]
[343145005,1732380638752,-750.0,0.00051,2]
[343145006,1732380638761,-1071.0292,0.00051006,2]
[343145007,1732380638771,-150.0,0.00051074,2]
[343145008,1732380638780,-1000.0,0.00051151,2]
[343145010,1732380638790,-204.67,0.0005119,2]
[343145011,1732380638799,-161.31,0.00051216,2]
[343145013,1732380638810,-204.58869481,0.00051288,23]
[343145015,1732380638820,-1885.22850276,0.00051289,30]
[343145018,1732380638829,-2458.0169933,0.00051289,30]
[343145020,1732380638839,-302.75956579,0.00051289,120]
[343145022,1732380638849,-39392.96837172,0.00051289,120]